[Event "FRA-ch Teams Top 16-A 2022"]
[Site "Chartres"]
[Date "2022.06.14"]
[Round "6.2"]
[White "Song, Julien"]
[Black "Abasov, Nijat"]
[Result "0-1"]
[ECO "E15"]
[WhiteElo "2388"]
[BlackElo "2635"]
[Annotator "RC"]
[PlyCount "136"]
[EventDate "2022.06.09"]
[EventType "team-tourn"]
[EventCountry "FRA"]
[SourceTitle "playchess.com"]
[Source "ChessBase"]
[SourceQuality "1"]
[TimeControl "40/5400+30:1800+30"]

1. d4 {[%emt 0:00:12]} Nf6 {[%emt 0:00:05]} 2. c4 {[%emt 0:00:17]} e6 {[%emt 0:00:06]} 3. Nf3 {[%emt 0:00:34]} b6 {[%emt 0:00:22]} 4. g3 {[%emt 0:01:51]} Ba6 {[%emt 0:01:14]} 5. b3 {[%emt 0:00:54]} Bb4+ {[%emt 0:00:21]} 6. Bd2 {[%emt 0:00:32]} Be7 {[%emt 0:00:08]} 7. Nc3 {[%emt 0:01:17]} d5 {[%emt 0:00:09]} 8. cxd5 {[%emt 0:04:27]} exd5 {[%emt 0:01:14]} 9. Bg2 {[%emt 0:01:49]} O-O {[%emt 0:00:09]} 10. Ne5 {[%emt 0:08:19]} Re8 {[%emt 0:04:32]} 11. O-O {[%emt 0:02:34]} Bb7 {[%emt 0:00:57]} 12. Rc1 {[%emt 0:12:12]} Nbd7 {[%emt 0:05:44]} 13. Bf4 {[%emt 0:19:29]} Nf8 {[%emt 0:02:43]} 14. Qd2 {[%emt 0:16:59]} Ne6 {[%emt 0:07:31]} 15. Be3 {[%emt 0:03:47]} a6 {[%emt 0:01:13]} 16. Qb2 {[%emt 0:00:42]} Bd6 {[%emt 0:01:03]} 17. b4 {[%emt 0:05:37]} Qe7 {[%emt 0:09:38]} 18. Nd3 {[%emt 0:01:23]} Rad8 {[%emt 0:00:55]} 19. Qb3 {[%emt 0:06:12]} c6 {[%emt 0:03:32]} 20. Bf3 {[%emt 0:02:26]} h5 {[%emt 0:01:47]} 21. Na4 {[%emt 0:03:19]} Bc7 {[%emt 0:00:28]} 22. Ne5 {[%emt 0:00:38]} b5 {[%emt 0:01:05]} 23. Nc5 {[%emt 0:02:43]} Nxc5 {[%emt 0:00:17]} 24. Rxc5 {[%emt 0:00:04]} Bxe5 {[%emt 0:00:21]} 25. dxe5 {[%emt 0:00:03]} Qxe5 {[%emt 0:00:51]} 26. Rd1 {[%emt 0:00:22]} Ne4 {[%emt 0:03:28]} 27. Bxe4 {[%emt 0:00:19]} Qxe4 {[%emt 0:00:07]} 28. Rd4 {[%emt 0:00:35]} Qe5 {[%emt 0:00:28]} 29. h4 {[%emt 0:01:44]} Re6 {[%emt 0:00:48]} 30. Qc2 {[%emt 0:01:32]} Rde8 {[%emt 0:01:23]} 31. Rc3 {[%emt 0:02:02]} Rg6 {[%emt 0:04:56]} 32. Rf4 {[%emt 0:00:56]} Qc7 {[%emt 0:05:24]} 33. Kf1 {[%emt 0:00:30]} Bc8 {[%emt 0:00:24]} 34. Bd4 {[%emt 0:00:27]} Bh3+ {[%emt 0:01:59]} 35. Ke1 {[%emt 0:00:12]} Rge6 {[%emt 0:00:14]} 36. e3 {[%emt 0:00:20]} a5 {[%emt 0:00:05]} 37. a3 {[%emt 0:00:58]} axb4 {[%emt 0:00:56]} 38. axb4 {[%emt 0:00:01]} Ra8 {[%emt 0:00:10]} 39. Qb2 {[%emt 0:00:35]} f6 {[%emt 0:01:00]} 40. Ra3 {[%emt 0:01:01]} Ree8 {[%emt 0:02:45]} 41. Rxa8 {[%emt 0:13:58]} Rxa8 {[%emt 0:01:08]} 42. Qc2 {[%emt 0:00:03]} f5 {[%emt 0:02:46]} 43. Bb2 {[%emt 0:03:35]} Re8 {[%emt 0:02:12]} 44. Qc3 {[%emt 0:00:59]} Re7 {[%emt 0:00:09]} 45. Qd4 {[%emt 0:06:25]} Qc8 {[%emt 0:04:22]} 46. Qc5 {[%emt 0:01:22]} Qe8 {[%emt 0:02:21]} 47. Bd4 {[%emt 0:01:04]} Kh7 {[%emt 0:03:30]} 48. Qd6 {[%emt 0:01:13]} Bg4 {[%emt 0:01:25]} 49. Kf1 {[%emt 0:01:18]} Rf7 {[%emt 0:04:14]} 50. Kg2 {[%emt 0:04:47]} Be2 {[%emt 0:01:04]} 51. Kh2 {[%emt 0:00:46]} Bd3 {[%emt 0:00:36]} 52. Bc3 {[%emt 0:00:28]} Be4 {[%emt 0:01:39]} 53. Qc5 {[%emt 0:00:32]} d4 {[%emt 0:00:51]} 54. Bxd4 {[%emt 0:00:27]} Qe6 {[%emt 0:00:13]} 55. Qc1 {[%emt 0:00:29]} Qb3 {[%emt 0:01:22]} 56. f3 {[%emt 0:00:32]} Bd5 {[%emt 0:01:43]} 57. Bb2 {[%emt 0:00:32]} Ra7 {[%emt 0:17:37]} 58. Qc3 {[%emt 0:00:08]} Qd1 {[%emt 0:00:17]} 59. e4 {[%emt 0:00:37]} Qe2+ {[%emt 0:01:29]} 60. Kg1 {[%emt 0:00:02]} Bc4 {[%emt 0:00:06]} 61. Qd4 {[%emt 0:01:09]} c5 {[%emt 0:08:55]} 62. bxc5 {[%emt 0:00:33]} Qe1+ {[%emt 0:00:22]} 63. Kh2 {[%emt 0:00:04]} Bf1 {[%emt 0:00:05]} 64. Kg1 {[%emt 0:00:32]} Qxg3+ {[%emt 0:00:47]} 65. Kxf1 {[%emt 0:00:06]} Qxf4 {[%emt 0:00:04]} 66. Kg2 {[%emt 0:00:41]} fxe4 {[%emt 0:00:09]} 67. fxe4 {[%emt 0:00:38]} Rf7 {[%emt 0:00:13]} 68. e5 {[%emt 0:00:49]} Qf1+ {[%emt 0:00:06]} 0-1

[Event "FRA-ch Teams Top 16-A 2022"]
[Site "Chartres"]
[Date "2022.06.14"]
[Round "6.3"]
[White "Parligras, Mircea-Emilian"]
[Black "Ramirez Garcia, Jorge Alberto"]
[Result "1/2-1/2"]
[ECO "D36"]
[WhiteElo "2583"]
[BlackElo "2242"]
[Annotator "RC"]
[PlyCount "63"]
[EventDate "2022.06.09"]
[EventType "team-tourn"]
[EventCountry "FRA"]
[SourceTitle "playchess.com"]
[Source "ChessBase"]
[SourceQuality "1"]
[TimeControl "40/5400+30:1800+30"]

1. d4 {[%emt 0:00:04]} d5 {[%emt 0:00:07]} 2. c4 {[%emt 0:00:12]} e6 {[%emt 0:00:06]} 3. Nc3 {[%emt 0:00:12]} Nf6 {[%emt 0:00:08]} 4. cxd5 {[%emt 0:00:34]} exd5 {[%emt 0:00:07]} 5. Bg5 {[%emt 0:00:06]} c6 {[%emt 0:00:09]} 6. e3 {[%emt 0:00:08]} Be7 {[%emt 0:00:19]} 7. Bd3 {[%emt 0:00:43]} Nbd7 {[%emt 0:00:18]} 8. Qc2 {[%emt 0:03:26]} h6 {[%emt 0:00:13]} 9. Bh4 {[%emt 0:00:07]} Nh5 {[%emt 0:00:15]} 10. Bxe7 {[%emt 0:00:13]} Qxe7 {[%emt 0:00:06]} 11. O-O-O {[%emt 0:00:13]} Nb6 {[%emt 0:01:34]} 12. Kb1 {[%emt 0:01:03]} Bd7 {[%emt 0:03:09]} 13. Rc1 {[%emt 0:03:24]} Nf6 {[%emt 0:21:52]} 14. Nf3 {[%emt 0:01:00]} Be6 {[%emt 0:15:15]} 15. h3 {[%emt 0:08:35]} Nfd7 {[%emt 0:01:13]} 16. Ne5 {[%emt 0:05:23]} Nxe5 {[%emt 0:01:44]} 17. dxe5 {[%emt 0:00:05]} O-O-O {[%emt 0:01:55]} 18. f4 {[%emt 0:01:29]} d4 {[%emt 0:03:07]} 19. exd4 {[%emt 0:11:54]} Rxd4 {[%emt 0:00:28]} 20. Ne2 {[%emt 0:07:55]} Rd7 {[%emt 0:08:27]} 21. Rhd1 {[%emt 0:07:01]} Nd5 {[%emt 0:11:07]} 22. f5 {[%emt 0:02:51]} Nb4 {[%emt 0:00:11]} 23. fxe6 {[%emt 0:00:05]} Rxd3 {[%emt 0:00:15]} 24. Qa4 {[%emt 0:07:54]} Rhd8 {[%emt 0:05:48]} 25. Rf1 {[%emt 0:10:41]} fxe6 {[%emt 0:00:20]} 26. Qxa7 {[%emt 0:02:58]} Rd2 {[%emt 0:05:48]} 27. Ng3 {[%emt 0:12:21]} Qd7 {[%emt 0:07:15]} 28. Qa8+ {[%emt 0:01:46]} Kc7 {[%emt 0:00:06]} 29. Qa5+ {[%emt 0:00:03]} Kc8 {[%emt 0:03:32]} 30. Qa8+ {[%emt 0:05:06]} Kc7 {[%emt 0:00:06]} 31. Qa5+ {[%emt 0:00:03]} Kc8 {[%emt 0:01:15]} 32. Qa8+ {[%emt 0:01:48]} 1/2-1/2

[Event "FRA-ch Teams Top 16-A 2022"]
[Site "Chartres"]
[Date "2022.06.14"]
[Round "6.4"]
[White "Sohier, Julien"]
[Black "Loiseau, Quentin"]
[Result "0-1"]
[ECO "D97"]
[WhiteElo "2218"]
[BlackElo "2445"]
[Annotator "RC"]
[PlyCount "82"]
[EventDate "2022.06.09"]
[EventType "team-tourn"]
[EventCountry "FRA"]
[SourceTitle "playchess.com"]
[Source "ChessBase"]
[SourceQuality "1"]
[TimeControl "40/5400+30:1800+30"]

1. d4 {[%emt 0:00:05]} Nf6 {[%emt 0:00:15]} 2. c4 {[%emt 0:00:06]} g6 {[%emt 0:00:07]} 3. Nc3 {[%emt 0:00:27]} d5 {[%emt 0:00:04]} 4. Nf3 {[%emt 0:01:17]} Bg7 {[%emt 0:00:23]} 5. Qb3 {[%emt 0:00:33]} dxc4 {[%emt 0:00:46]} 6. Qxc4 {[%emt 0:00:04]} O-O {[%emt 0:00:06]} 7. e4 {[%emt 0:00:41]} Nc6 {[%emt 0:01:56]} 8. Be2 {[%emt 0:10:18]} e5 {[%emt 0:01:19]} 9. dxe5 {[%emt 0:01:40]} Ng4 {[%emt 0:02:00]} 10. O-O {[%emt 0:00:18]} Ngxe5 {[%emt 0:02:17]} 11. Nxe5 {[%emt 0:00:05]} Nxe5 {[%emt 0:00:38]} 12. Qb3 {[%emt 0:01:01]} Nc6 {[%emt 0:01:27]} 13. Be3 {[%emt 0:18:23]} Nd4 {[%emt 0:01:25]} 14. Bxd4 {[%emt 0:01:07]} Qxd4 {[%emt 0:01:17]} 15. Rfd1 {[%emt 0:07:26]} Qe5 {[%emt 0:04:32]} 16. Nd5 {[%emt 0:07:31]} c6 {[%emt 0:09:51]} 17. f4 {[%emt 0:06:30]} Qxe4 {[%emt 0:06:10]} 18. Bf3 {[%emt 0:01:43]} Qe6 {[%emt 0:00:56]} 19. Re1 {[%emt 0:03:39]} Qd6 {[%emt 0:04:19]} 20. Ne7+ {[%emt 0:01:50]} Kh8 {[%emt 0:01:46]} 21. Nxc8 {[%emt 0:00:39]} Raxc8 {[%emt 0:01:20]} 22. Qxb7 {[%emt 0:01:26]} Qxf4 {[%emt 0:04:56]} 23. Re4 {[%emt 0:06:36]} Bd4+ {[%emt 0:07:32]} 24. Kh1 {[%emt 0:01:51]} Qf6 {[%emt 0:00:23]} 25. Re2 {[%emt 0:06:35]} c5 {[%emt 0:03:00]} 26. Qxa7 {[%emt 0:01:23]} Bxb2 {[%emt 0:01:36]} 27. Rb1 {[%emt 0:01:11]} Bd4 {[%emt 0:00:16]} 28. a4 {[%emt 0:03:00]} c4 {[%emt 0:01:29]} 29. Qe7 {[%emt 0:04:19]} Qxe7 {[%emt 0:00:16]} 30. Rxe7 {[%emt 0:00:05]} c3 {[%emt 0:00:03]} 31. Re2 {[%emt 0:01:35]} Rfe8 {[%emt 0:02:43]} 32. Rxe8+ {[%emt 0:03:53]} Rxe8 {[%emt 0:00:05]} 33. g3 {[%emt 0:00:13]} Re3 {[%emt 0:12:30]} 34. Bd5 {[%emt 0:01:54]} Re2 {[%emt 0:04:27]} 35. Rc1 {[%emt 0:01:36]} f5 {[%emt 0:03:10]} 36. Bc4 {[%emt 0:01:21]} Rd2 {[%emt 0:01:02]} 37. a5 {[%emt 0:00:43]} g5 {[%emt 0:03:08]} 38. a6 {[%emt 0:00:25]} g4 {[%emt 0:00:23]} 39. h3 {[%emt 0:02:57]} f4 {[%emt 0:00:35]} 40. a7 {[%emt 0:02:45]} Bxa7 {[%emt 0:00:01]} 41. Rxc3 {[%emt 0:31:16]} Rd1+ {[%emt 0:31:50]} 0-1

[Event "FRA-ch Teams Top 16-A 2022"]
[Site "Chartres"]
[Date "2022.06.14"]
[Round "6.5"]
[White "Wirig, Anthony"]
[Black "Baillon, Olivier"]
[Result "1-0"]
[ECO "E09"]
[WhiteElo "2520"]
[BlackElo "2197"]
[Annotator "RC"]
[PlyCount "87"]
[EventDate "2022.06.09"]
[EventType "team-tourn"]
[EventCountry "FRA"]
[SourceTitle "playchess.com"]
[Source "ChessBase"]
[SourceQuality "1"]
[TimeControl "40/5400+30:1800+30"]

1. c4 {[%emt 0:00:26]} e6 {[%emt 0:02:11]} 2. Nf3 {[%emt 0:01:42]} d5 {[%emt 0:00:35]} 3. g3 {[%emt 0:02:49]} Nf6 {[%emt 0:02:43]} 4. Bg2 {[%emt 0:01:33]} Be7 {[%emt 0:02:32]} 5. O-O {[%emt 0:01:43]} O-O {[%emt 0:01:32]} 6. d4 {[%emt 0:03:26]} c6 {[%emt 0:03:10]} 7. Qc2 {[%emt 0:08:01]} Nbd7 {[%emt 0:03:34]} 8. Nbd2 {[%emt 0:03:51]} b6 {[%emt 0:01:37]} 9. e4 {[%emt 0:01:48]} dxe4 {[%emt 0:01:00]} 10. Nxe4 {[%emt 0:00:10]} Nxe4 {[%emt 0:01:00]} 11. Qxe4 {[%emt 0:00:02]} Bb7 {[%emt 0:00:23]} 12. Rd1 {[%emt 0:04:55]} Qc8 {[%emt 0:03:49]} 13. Ng5 {[%emt 0:18:24]} Nf6 {[%emt 0:01:28]} 14. Qe2 {[%emt 0:01:22]} Re8 {[%emt 0:03:49]} 15. Qf3 {[%emt 0:11:35]} Bd6 {[%emt 0:17:20]} 16. Be3 {[%emt 0:08:26]} e5 {[%emt 0:04:04]} 17. c5 {[%emt 0:02:16]} Bc7 {[%emt 0:01:35]} 18. Bh3 {[%emt 0:03:07]} Qb8 {[%emt 0:01:27]} 19. Bf5 {[%emt 0:00:20]} h6 {[%emt 0:07:33]} 20. Ne4 {[%emt 0:02:01]} Nxe4 {[%emt 0:02:34]} 21. Bxe4 {[%emt 0:00:08]} Re6 {[%emt 0:02:19]} 22. dxe5 {[%emt 0:04:15]} Bxe5 {[%emt 0:00:48]} 23. Rd7 {[%emt 0:00:13]} Rf6 {[%emt 0:03:46]} 24. Qh5 {[%emt 0:00:49]} Bxb2 {[%emt 0:03:09]} 25. Rad1 {[%emt 0:05:52]} Qe8 {[%emt 0:00:44]} 26. Bg5 {[%emt 0:09:06]} Re6 {[%emt 0:12:26]} 27. Rd8 {[%emt 0:02:57]} Rxd8 {[%emt 0:00:13]} 28. Rxd8 {[%emt 0:00:03]} Rxe4 {[%emt 0:00:19]} 29. Rxe8+ {[%emt 0:00:14]} Rxe8 {[%emt 0:00:07]} 30. Be3 {[%emt 0:00:13]} Ba6 {[%emt 0:09:27]} 31. Qd1 {[%emt 0:00:02]} bxc5 {[%emt 0:00:39]} 32. Qd7 {[%emt 0:00:51]} Re6 {[%emt 0:00:27]} 33. Qxa7 {[%emt 0:00:15]} Bb5 {[%emt 0:02:32]} 34. a4 {[%emt 0:01:03]} Bd4 {[%emt 0:00:51]} 35. axb5 {[%emt 0:00:31]} cxb5 {[%emt 0:01:10]} 36. Bxd4 {[%emt 0:00:19]} cxd4 {[%emt 0:00:08]} 37. Qxd4 {[%emt 0:00:04]} g6 {[%emt 0:01:11]} 38. Kg2 {[%emt 0:00:25]} h5 {[%emt 0:02:13]} 39. Qc5 {[%emt 0:00:10]} Kg7 {[%emt 0:00:48]} 40. Qxb5 {[%emt 0:00:02]} Re7 {[%emt 0:00:56]} 41. Qb2+ {[%emt 0:30:13]} f6 {[%emt 0:30:09]} 42. Qd4 {[%emt 0:00:46]} Rb7 {[%emt 0:00:33]} 43. h4 {[%emt 0:01:26]} Re7 {[%emt 0:00:58]} 44. f3 {[%emt 0:01:06]} 1-0

[Event "FRA-ch Teams Top 16-A 2022"]
[Site "Chartres"]
[Date "2022.06.14"]
[Round "6.6"]
[White "Mendeiros, Jerome"]
[Black "Riff, Vincent"]
[Result "1/2-1/2"]
[ECO "B51"]
[WhiteElo "2097"]
[BlackElo "2397"]
[Annotator "RC"]
[PlyCount "56"]
[EventDate "2022.06.09"]
[EventType "team-tourn"]
[EventCountry "FRA"]
[SourceTitle "playchess.com"]
[Source "ChessBase"]
[SourceQuality "1"]
[TimeControl "40/5400+30:1800+30"]

1. e4 {[%emt 0:00:08]} c5 {[%emt 0:00:05]} 2. Nf3 {[%emt 0:00:09]} Nc6 {[%emt 0:00:03]} 3. Bb5 {[%emt 0:00:14]} d6 {[%emt 0:00:06]} 4. O-O {[%emt 0:00:17]} Bd7 {[%emt 0:00:01]} 5. Re1 {[%emt 0:00:20]} Nf6 {[%emt 0:00:08]} 6. c3 {[%emt 0:00:34]} a6 {[%emt 0:00:21]} 7. Bf1 {[%emt 0:00:10]} Bg4 {[%emt 0:00:05]} 8. d4 {[%emt 0:00:16]} cxd4 {[%emt 0:00:32]} 9. cxd4 {[%emt 0:00:07]} Bxf3 {[%emt 0:00:09]} 10. gxf3 {[%emt 0:00:06]} d5 {[%emt 0:00:04]} 11. e5 {[%emt 0:06:20]} Nh5 {[%emt 0:00:16]} 12. Be3 {[%emt 0:08:42]} e6 {[%emt 0:01:07]} 13. Nc3 {[%emt 0:03:59]} Be7 {[%emt 0:08:50]} 14. Qd2 {[%emt 0:09:54]} O-O {[%emt 0:02:46]} 15. Rac1 {[%emt 0:03:26]} g6 {[%emt 0:01:46]} 16. Red1 {[%emt 0:16:43]} f5 {[%emt 0:03:13]} 17. Bh6 {[%emt 0:06:04]} Rf7 {[%emt 0:09:26]} 18. f4 {[%emt 0:04:12]} Bb4 {[%emt 0:11:16]} 19. Bg5 {[%emt 0:01:12]} Qf8 {[%emt 0:00:25]} 20. Be2 {[%emt 0:01:12]} h6 {[%emt 0:06:30]} 21. Bh4 {[%emt 0:06:11]} Ng7 {[%emt 0:00:46]} 22. Qe3 {[%emt 0:02:42]} Ne8 {[%emt 0:05:13]} 23. Kh1 {[%emt 0:01:34]} Rg7 {[%emt 0:01:52]} 24. Rg1 {[%emt 0:00:39]} Bxc3 {[%emt 0:02:48]} 25. Rxc3 {[%emt 0:03:37]} Kh7 {[%emt 0:01:57]} 26. a3 {[%emt 0:02:52]} Rc8 {[%emt 0:01:50]} 27. Qd2 {[%emt 0:01:31]} Rcc7 {[%emt 0:00:51]} 28. Rh3 {[%emt 0:01:19]} Kg8 {[%emt 0:01:47]} 1/2-1/2

[Event "FRA-ch Teams Top 16-A 2022"]
[Site "Chartres"]
[Date "2022.06.14"]
[Round "6.7"]
[White "Demuth, Adrien"]
[Black "Hirth, Julien"]
[Result "1-0"]
[ECO "A41"]
[WhiteElo "2493"]
[BlackElo "2072"]
[Annotator "RC"]
[PlyCount "69"]
[EventDate "2022.06.09"]
[EventType "team-tourn"]
[EventCountry "FRA"]
[SourceTitle "playchess.com"]
[Source "ChessBase"]
[SourceQuality "1"]
[TimeControl "40/5400+30:1800+30"]

1. d4 {[%emt 0:00:03]} d6 {[%emt 0:00:08]} 2. c4 {[%emt 0:00:26]} e5 {[%emt 0:00:17]} 3. d5 {[%emt 0:00:26]} g6 {[%emt 0:00:40]} 4. Nc3 {[%emt 0:00:32]} a5 {[%emt 0:00:46]} 5. h4 {[%emt 0:04:44]} Nf6 {[%emt 0:12:52]} 6. e4 {[%emt 0:06:27]} Bg7 {[%emt 0:00:57]} 7. f3 {[%emt 0:04:58]} h5 {[%emt 0:13:20]} 8. Bd3 {[%emt 0:06:45]} Bh6 {[%emt 0:02:06]} 9. Bxh6 {[%emt 0:02:11]} Rxh6 {[%emt 0:00:13]} 10. a3 {[%emt 0:00:15]} Na6 {[%emt 0:21:01]} 11. Nge2 {[%emt 0:17:58]} Bd7 {[%emt 0:01:47]} 12. Bc2 {[%emt 0:03:19]} Rh8 {[%emt 0:02:28]} 13. Qd2 {[%emt 0:11:56]} Nc5 {[%emt 0:11:21]} 14. b3 {[%emt 0:03:00]} Kf8 {[%emt 0:00:44]} 15. Rb1 {[%emt 0:07:39]} Kg7 {[%emt 0:01:38]} 16. b4 {[%emt 0:01:56]} Na6 {[%emt 0:00:12]} 17. g3 {[%emt 0:07:23]} Qe7 {[%emt 0:00:48]} 18. Kf2 {[%emt 0:02:40]} Rhf8 {[%emt 0:05:36]} 19. Kg2 {[%emt 0:06:35]} Ng8 {[%emt 0:01:10]} 20. Nd1 {[%emt 0:02:55]} Nh6 {[%emt 0:03:25]} 21. Nf2 {[%emt 0:00:37]} f5 {[%emt 0:04:06]} 22. exf5 {[%emt 0:02:13]} Bxf5 {[%emt 0:00:34]} 23. Ne4 {[%emt 0:00:33]} Bxe4 {[%emt 0:00:56]} 24. Bxe4 {[%emt 0:00:04]} Rf6 {[%emt 0:02:25]} 25. Qc3 {[%emt 0:02:40]} axb4 {[%emt 0:04:18]} 26. axb4 {[%emt 0:00:02]} Raf8 {[%emt 0:00:06]} 27. Rhc1 {[%emt 0:01:54]} Nf5 {[%emt 0:04:47]} 28. c5 {[%emt 0:01:36]} R6f7 {[%emt 0:00:12]} 29. c6 {[%emt 0:01:38]} b6 {[%emt 0:02:05]} 30. Ra1 {[%emt 0:00:13]} Nb8 {[%emt 0:02:38]} 31. Qd2 {[%emt 0:00:17]} Qe8 {[%emt 0:01:45]} 32. Ra7 {[%emt 0:00:31]} Qc8 {[%emt 0:00:30]} 33. Rca1 {[%emt 0:00:53]} Rf6 {[%emt 0:00:37]} 34. Rb7 {[%emt 0:00:17]} Nd7 {[%emt 0:00:14]} 35. Raa7 {[%emt 0:00:06]} 1-0

[Event "FRA-ch Teams Top 16-A 2022"]
[Site "Chartres"]
[Date "2022.06.14"]
[Round "6.8"]
[White "Auvray, Juliette"]
[Black "Milliet, Sophie"]
[Result "0-1"]
[ECO "B56"]
[WhiteElo "1970"]
[BlackElo "2410"]
[Annotator "RC"]
[PlyCount "128"]
[EventDate "2022.06.09"]
[EventType "team-tourn"]
[EventCountry "FRA"]
[SourceTitle "playchess.com"]
[Source "ChessBase"]
[SourceQuality "1"]
[TimeControl "40/5400+30:1800+30"]

1. e4 {[%emt 0:00:03]} c5 {[%emt 0:01:23]} 2. Nf3 {[%emt 0:00:05]} d6 {[%emt 0:00:04]} 3. d4 {[%emt 0:00:14]} cxd4 {[%emt 0:00:04]} 4. Nxd4 {[%emt 0:00:04]} Nf6 {[%emt 0:00:04]} 5. Nc3 {[%emt 0:00:29]} Nc6 {[%emt 0:00:06]} 6. f3 {[%emt 0:02:57]} e5 {[%emt 0:00:16]} 7. Nb3 {[%emt 0:00:21]} Be7 {[%emt 0:00:04]} 8. Be3 {[%emt 0:01:03]} O-O {[%emt 0:00:14]} 9. Qd2 {[%emt 0:01:38]} Be6 {[%emt 0:00:10]} 10. O-O-O {[%emt 0:02:20]} a5 {[%emt 0:00:14]} 11. a4 {[%emt 0:02:42]} Nb4 {[%emt 0:00:59]} 12. g4 {[%emt 0:09:08]} d5 {[%emt 0:14:09]} 13. g5 {[%emt 0:06:33]} d4 {[%emt 0:04:17]} 14. gxf6 {[%emt 0:03:39]} Bxf6 {[%emt 0:00:10]} 15. Nxd4 {[%emt 0:09:47]} exd4 {[%emt 0:00:09]} 16. Bxd4 {[%emt 0:03:03]} Bxd4 {[%emt 0:06:16]} 17. Qxd4 {[%emt 0:01:58]} Qg5+ {[%emt 0:00:39]} 18. Qd2 {[%emt 0:04:28]} Qf6 {[%emt 0:00:09]} 19. Qe3 {[%emt 0:05:24]} Rac8 {[%emt 0:01:02]} 20. Kb1 {[%emt 0:04:37]} Qe7 {[%emt 0:07:38]} 21. Rg1 {[%emt 0:05:10]} f5 {[%emt 0:00:15]} 22. Bh3 {[%emt 0:07:50]} Qf7 {[%emt 0:21:39]} 23. Rd2 {[%emt 0:05:16]} g6 {[%emt 0:08:18]} 24. Qb6 {[%emt 0:06:10]} Qf6 {[%emt 0:17:25]} 25. Rd6 {[%emt 0:04:02]} Nc6 {[%emt 0:00:08]} 26. Nb5 {[%emt 0:04:20]} Qe5 {[%emt 0:03:55]} 27. f4 {[%emt 0:04:21]} Qxe4 {[%emt 0:00:46]} 28. Nc3 {[%emt 0:02:23]} Qb4 {[%emt 0:05:38]} 29. Qxb4 {[%emt 0:03:00]} axb4 {[%emt 0:00:01]} 30. Rxe6 {[%emt 0:00:42]} bxc3 {[%emt 0:00:05]} 31. bxc3 {[%emt 0:00:29]} Ra8 {[%emt 0:00:11]} 32. Bg2 {[%emt 0:01:07]} Rxa4 {[%emt 0:00:05]} 33. Bd5 {[%emt 0:00:56]} Kg7 {[%emt 0:00:13]} 34. Rf1 {[%emt 0:00:28]} Rd8 {[%emt 0:04:04]} 35. c4 {[%emt 0:00:34]} Rda8 {[%emt 0:01:27]} 36. Rf3 {[%emt 0:00:30]} Ra1+ {[%emt 0:01:33]} 37. Kb2 {[%emt 0:00:04]} R8a2+ {[%emt 0:01:28]} 38. Kc3 {[%emt 0:00:18]} Ra3+ {[%emt 0:00:55]} 39. Kd2 {[%emt 0:01:04]} Rxf3 {[%emt 0:01:12]} 40. Bxf3 {[%emt 0:00:06]} Nd4 {[%emt 0:00:37]} 41. Re3 {[%emt 0:02:27]} Nxf3+ {[%emt 0:08:25]} 42. Rxf3 {[%emt 0:00:08]} Rh1 {[%emt 0:00:07]} 43. h3 {[%emt 0:01:35]} h5 {[%emt 0:07:25]} 44. Rb3 {[%emt 0:04:05]} Rh2+ {[%emt 0:00:12]} 45. Kd1 {[%emt 0:01:00]} b6 {[%emt 0:00:58]} 46. Rxb6 {[%emt 0:04:18]} Rxh3 {[%emt 0:00:04]} 47. Rb3 {[%emt 0:01:55]} Rh1+ {[%emt 0:04:42]} 48. Ke2 {[%emt 0:02:13]} h4 {[%emt 0:02:14]} 49. Rc3 {[%emt 0:07:26]} Kf6 {[%emt 0:06:43]} 50. c5 {[%emt 0:01:45]} Ke7 {[%emt 0:00:05]} 51. c6 {[%emt 0:00:50]} Kd8 {[%emt 0:00:03]} 52. c7+ {[%emt 0:00:48]} Kc8 {[%emt 0:00:01]} 53. Rc4 {[%emt 0:01:58]} Rg1 {[%emt 0:00:58]} 54. Rc3 {[%emt 0:04:53]} Rg2+ {[%emt 0:00:07]} 55. Kf1 {[%emt 0:01:16]} Rg4 {[%emt 0:00:03]} 56. Rf3 {[%emt 0:00:19]} Kxc7 {[%emt 0:00:04]} 57. Kf2 {[%emt 0:00:24]} Kc6 {[%emt 0:00:22]} 58. Ke3 {[%emt 0:01:13]} Kd5 {[%emt 0:00:58]} 59. Kf2 {[%emt 0:01:09]} Ke4 {[%emt 0:04:20]} 60. Re3+ {[%emt 0:00:39]} Kxf4 {[%emt 0:00:05]} 61. c4 {[%emt 0:00:13]} Kg5 {[%emt 0:03:44]} 62. Rc3 {[%emt 0:00:25]} h3 {[%emt 0:00:27]} 63. c5 {[%emt 0:00:34]} h2 {[%emt 0:00:36]} 64. Rc1 {[%emt 0:00:15]} Rc4 {[%emt 0:00:15]} 0-1

[Event "FRA-ch Teams Top 16-A 2022"]
[Site "Chartres"]
[Date "2022.06.14"]
[Round "6.9"]
[White "Malakhov, Vladimir"]
[Black "Feller, Sebastien"]
[Result "1-0"]
[ECO "D94"]
[WhiteElo "2652"]
[BlackElo "2569"]
[Annotator "RC"]
[PlyCount "49"]
[EventDate "2022.06.09"]
[EventType "team-tourn"]
[EventCountry "FRA"]
[SourceTitle "playchess.com"]
[Source "ChessBase"]
[SourceQuality "1"]
[TimeControl "40/5400+30:1800+30"]

1. c4 {[%emt 0:00:09]} c6 {[%emt 0:02:27]} 2. Nf3 {[%emt 0:01:11]} d5 {[%emt 0:00:06]} 3. e3 {[%emt 0:00:14]} Nf6 {[%emt 0:01:58]} 4. Nc3 {[%emt 0:00:13]} g6 {[%emt 0:00:44]} 5. d4 {[%emt 0:04:41]} Bg7 {[%emt 0:00:07]} 6. Be2 {[%emt 0:00:12]} O-O {[%emt 0:00:17]} 7. O-O {[%emt 0:00:04]} dxc4 {[%emt 0:01:13]} 8. Bxc4 {[%emt 0:03:54]} Bg4 {[%emt 0:00:05]} 9. Be2 {[%emt 0:04:59]} Nbd7 {[%emt 0:01:11]} 10. e4 {[%emt 0:01:19]} Bxf3 {[%emt 0:01:02]} 11. gxf3 {[%emt 0:08:29]} e5 {[%emt 0:17:19]} 12. dxe5 {[%emt 0:02:45]} Nxe5 {[%emt 0:05:48]} 13. f4 {[%emt 0:00:08]} Ned7 {[%emt 0:01:23]} 14. Be3 {[%emt 0:00:27]} Nb6 {[%emt 0:45:16]} 15. a4 {[%emt 0:03:21]} Qe7 {[%emt 0:02:50]} 16. a5 {[%emt 0:02:44]} Rad8 {[%emt 0:00:06]} 17. Qb3 {[%emt 0:01:28]} Nc8 {[%emt 0:00:06]} 18. e5 {[%emt 0:01:09]} Nd5 {[%emt 0:01:09]} 19. Nxd5 {[%emt 0:00:17]} Rxd5 {[%emt 0:00:54]} 20. a6 {[%emt 0:00:09]} bxa6 {[%emt 0:04:01]} 21. Rxa6 {[%emt 0:01:21]} Nb6 {[%emt 0:01:04]} 22. Qa3 {[%emt 0:21:42]} Qxa3 {[%emt 0:01:59]} 23. bxa3 {[%emt 0:00:04]} Rd7 {[%emt 0:00:59]} 24. Rc1 {[%emt 0:01:08]} Rc8 {[%emt 0:00:42]} 25. Bg4 {[%emt 0:00:47]} 1-0